[Event "The Kvibergspelen 2024"]
[Site "Kviberg Park Hotel & Conference, Krutvagen 2, Gothenburg, Sweden"]
[Date "2024.09.07"]
[Round "6.7"]
[White "Andersson, Robert"]
[Black "Johansson, William"]
[Result "0-1"]
[TimeControl "15 minutes + 5 seconds per move from move one (Round 1 - 4) / 90 minutes + 30 seconds per move from move one (Round 5 - 8)"]
[WhiteFideId "1703226"]
[BlackFideId "1744070"]
[WhiteElo "2098"]
[BlackElo "1899"]

1. d4 {[%clk 01:30:14]} {[%emt 00:00:45]} Nf6 {[%clk 01:30:53]} {[%emt
00:00:08]} 2. Nf3 {[%clk 01:30:32]} {[%emt 00:00:12]} e6 {[%clk 01:31:03]}
{[%emt 00:00:20]} 3. g3 {[%clk 01:30:02]} {[%emt 00:00:59]} b6 {[%clk
01:31:26]} {[%emt 00:00:08]} 4. Bg2 {[%clk 01:30:15]} {[%emt 00:00:16]} Bb7
{[%clk 01:31:51]} {[%emt 00:00:06]} 5. O-O {[%clk 01:30:36]} {[%emt 00:00:08]}
c5 {[%clk 01:32:12]} {[%emt 00:00:09]} 6. c3 {[%clk 01:30:59]} {[%emt
00:00:07]} Be7 {[%clk 01:32:23]} {[%emt 00:00:20]} 7. b3 {[%clk 01:26:33]}
{[%emt 00:04:56]} O-O {[%clk 01:32:40]} {[%emt 00:00:12]} 8. Bb2 {[%clk
01:26:56]} {[%emt 00:00:08]} d5 {[%clk 01:28:52]} {[%emt 00:04:18]} 9. Ne5
{[%clk 01:27:04]} {[%emt 00:00:22]} Nbd7 {[%clk 01:28:39]} {[%emt 00:00:42]} 10.
c4 {[%clk 01:20:26]} {[%emt 00:07:08]} Qc7 {[%clk 01:27:22]} {[%emt 00:01:48]}
11. Nxd7 {[%clk 01:20:20]} {[%emt 00:00:36]} Qxd7 {[%clk 01:26:07]} {[%emt
00:01:44]} 12. dxc5 {[%clk 01:19:59]} {[%emt 00:00:51]} bxc5 {[%clk 01:26:08]}
{[%emt 00:00:30]} 13. cxd5 {[%clk 01:19:59]} {[%emt 00:00:28]} exd5 {[%clk
01:22:26]} {[%emt 00:04:13]} 14. e3 {[%clk 01:19:40]} {[%emt 00:00:48]} Rfd8
{[%clk 01:22:10]} {[%emt 00:00:48]} 15. Nd2 {[%clk 01:19:17]} {[%emt 00:00:52]}
Rac8 {[%clk 01:20:37]} {[%emt 00:02:03]} 16. Rc1 {[%clk 01:17:06]} {[%emt
00:02:41]} Ba6 {[%clk 01:09:22]} {[%emt 00:11:45]} 17. Re1 {[%clk 01:17:13]}
{[%emt 00:00:23]} c4 {[%clk 01:07:50]} {[%emt 00:02:04]} 18. Nf3 {[%clk
00:44:36]} {[%emt 00:33:06]} Ne4 {[%clk 01:02:13]} {[%emt 00:06:06]} 19. bxc4
{[%clk 00:38:11]} {[%emt 00:06:55]} Bxc4 {[%clk 00:53:00]} {[%emt 00:09:43]} 20.
Nd2 {[%clk 00:29:41]} {[%emt 00:08:59]} Qf5 {[%clk 00:47:40]} {[%emt 00:05:51]}
21. Nxe4 {[%clk 00:29:30]} {[%emt 00:00:41]} dxe4 {[%clk 00:43:13]} {[%emt
00:04:56]} 22. Qa4 {[%clk 00:29:48]} {[%emt 00:00:12]} Rd2 {[%clk 00:42:37]}
{[%emt 00:01:08]} 23. Kh1 {[%clk 00:25:47]} {[%emt 00:04:31]} Qxf2 {[%clk
00:38:06]} {[%emt 00:05:00]} 24. Rg1 {[%clk 00:26:10]} {[%emt 00:00:07]} Rxb2
{[%clk 00:35:20]} {[%emt 00:03:16]} 25. Rxc4 {[%clk 00:26:07]} {[%emt
00:00:33]} Rxc4 {[%clk 00:35:08]} {[%emt 00:00:42]} 26. Qxc4 {[%clk 00:26:27]}
{[%emt 00:00:11]} Qxe3 {[%clk 00:32:40]} {[%emt 00:02:57]} 27. Bxe4 {[%clk
00:25:49]} {[%emt 00:01:07]} Bc5 {[%clk 00:26:36]} {[%emt 00:06:35]} 28. Rf1
{[%clk 00:19:46]} {[%emt 00:06:33]} Rf2 {[%clk 00:25:33]} {[%emt 00:01:33]} 29.
Rxf2 {[%clk 00:19:28]} {[%emt 00:00:48]} Qxf2 {[%clk 00:25:50]} {[%emt
00:00:13]} 30. Qc1 {[%clk 00:19:51]} {[%emt 00:00:06]} g6 {[%clk 00:25:06]}
{[%emt 00:01:15]} 31. Bd5 {[%clk 00:19:19]} {[%emt 00:01:00]} Kg7 {[%clk
00:25:06]} {[%emt 00:00:33]} 32. a4 {[%clk 00:18:38]} {[%emt 00:01:11]} a5
{[%clk 00:22:52]} {[%emt 00:02:43]} 33. Qd1 {[%clk 00:18:56]} {[%emt 00:00:11]}
h5 {[%clk 00:22:48]} {[%emt 00:00:34]} 34. Bc4 {[%clk 00:18:51]} {[%emt
00:00:36]} Qe3 {[%clk 00:22:03]} {[%emt 00:01:15]} 35. Qf1 {[%clk 00:18:56]}
{[%emt 00:00:24]} Qe4+ {[%emt 00:00:37]} 36. Qd1 {[%clk 00:00:00]} 0-1

[Event "The Kvibergspelen 2024"]
[Site "Kviberg Park Hotel & Conference, Krutvagen 2, Gothenburg, Sweden"]
[Date "2024.09.07"]
[Round "6.8"]
[White "Krilovs, Nikolajs"]
[Black "Ostlund, Joar"]
[Result "0-1"]
[TimeControl "15 minutes + 5 seconds per move from move one (Round 1 - 4) / 90 minutes + 30 seconds per move from move one (Round 5 - 8)"]
[BlackTitle "FM"]
[WhiteFideId "11603100"]
[BlackFideId "1735020"]
[WhiteElo "2054"]
[BlackElo "2335"]

1. c4 {[%clk 01:30:55]} {[%emt 00:00:05]} e6 {[%clk 01:30:28]} {[%emt
00:00:33]} 2. d4 {[%clk 01:31:16]} {[%emt 00:00:08]} d5 {[%clk 01:30:35]}
{[%emt 00:00:23]} 3. Nc3 {[%clk 01:31:23]} {[%emt 00:00:22]} Nf6 {[%clk
01:30:46]} {[%emt 00:00:20]} 4. cxd5 {[%clk 01:31:37]} {[%emt 00:00:16]} exd5
{[%clk 01:31:06]} {[%emt 00:00:09]} 5. Bg5 {[%clk 01:31:46]} {[%emt 00:00:21]}
c6 {[%clk 01:31:02]} {[%emt 00:00:35]} 6. e3 {[%clk 01:31:12]} {[%emt
00:01:04]} h6 {[%clk 01:30:18]} {[%emt 00:01:14]} 7. Bh4 {[%clk 01:30:27]}
{[%emt 00:01:15]} Be7 {[%clk 01:30:38]} {[%emt 00:00:10]} 8. Bd3 {[%clk
01:30:23]} {[%emt 00:00:34]} O-O {[%clk 01:30:50]} {[%emt 00:00:16]} 9. Nge2
{[%clk 01:28:42]} {[%emt 00:02:13]} Re8 {[%clk 01:30:49]} {[%emt 00:00:30]} 10.
Qc2 {[%clk 01:25:57]} {[%emt 00:03:16]} a5 {[%clk 01:31:00]} {[%emt 00:00:19]}
11. O-O {[%clk 01:25:20]} {[%emt 00:01:07]} Na6 {[%clk 01:31:20]} {[%emt
00:00:11]} 12. a3 {[%clk 01:25:21]} {[%emt 00:00:28]} Nc7 {[%clk 01:31:25]}
{[%emt 00:00:25]} 13. Rae1 {[%clk 01:19:47]} {[%emt 00:06:03]} Ne6 {[%clk
01:31:15]} {[%emt 00:00:41]} 14. f3 {[%clk 01:18:54]} {[%emt 00:01:24]} b5
{[%clk 01:29:44]} {[%emt 00:02:00]} 15. Bf2 {[%clk 01:15:05]} {[%emt 00:04:18]}
Ba6 {[%clk 01:27:57]} {[%emt 00:02:18]} 16. h3 {[%clk 01:11:50]} {[%emt
00:03:44]} Qb8 {[%clk 01:09:44]} {[%emt 00:18:44]} 17. e4 {[%clk 01:05:40]}
{[%emt 00:06:40]} b4 {[%clk 01:04:32]} {[%emt 00:05:42]} 18. Nb1 {[%clk
00:52:36]} {[%emt 00:13:35]} Bxd3 {[%clk 01:00:22]} {[%emt 00:04:39]} 19. Qxd3
{[%clk 00:52:51]} {[%emt 00:00:15]} dxe4 {[%clk 01:00:41]} {[%emt 00:00:11]} 20.
fxe4 {[%clk 00:53:04]} {[%emt 00:00:16]} Rd8 {[%clk 00:59:30]} {[%emt
00:01:41]} 21. Qc2 {[%clk 00:48:18]} {[%emt 00:05:17]} b3 {[%clk 00:50:42]}
{[%emt 00:09:18]} 22. Qd3 {[%clk 00:45:01]} {[%emt 00:03:47]} Nc5 {[%clk
00:50:07]} {[%emt 00:01:05]} 23. Qc4 {[%clk 00:44:53]} {[%emt 00:00:38]} Ncxe4
{[%clk 00:49:22]} {[%emt 00:01:14]} 24. Nec3 {[%clk 00:43:53]} {[%emt
00:01:30]} Nxf2 {[%clk 00:18:28]} {[%emt 00:31:24]} 25. Rxf2 {[%clk 00:34:26]}
{[%emt 00:09:58]} Qa7 {[%clk 00:15:22]} {[%emt 00:03:36]} 26. Kh1 {[%clk
00:29:15]} {[%emt 00:05:41]} Bf8 {[%clk 00:14:31]} {[%emt 00:01:21]} 27. Qxc6
{[%clk 00:28:01]} {[%emt 00:01:44]} Qxd4 {[%clk 00:14:11]} {[%emt 00:00:50]} 28.
Ref1 {[%clk 00:25:54]} {[%emt 00:02:37]} Re8 {[%clk 00:06:14]} {[%emt
00:08:27]} 29. Nd2 {[%clk 00:24:01]} {[%emt 00:02:23]} Rab8 {[%clk 00:04:05]}
{[%emt 00:02:40]} 30. Nb5 {[%clk 00:19:15]} {[%emt 00:05:15]} Qc5 {[%clk
00:03:14]} {[%emt 00:01:21]} 31. Qxc5 {[%clk 00:15:21]} {[%emt 00:04:24]} Bxc5
{[%clk 00:03:41]} {[%emt 00:00:02]} 32. Nc7 {[%clk 00:15:16]} {[%emt 00:00:35]}
Rec8 {[%clk 00:01:51]} {[%emt 00:02:21]} 33. Rxf6 {[%clk 00:15:26]} {[%emt
00:00:20]} gxf6 {[%clk 00:01:27]} {[%emt 00:00:55]} 34. Nd5 {[%clk 00:15:50]}
{[%emt 00:00:05]} Rd8 {[%clk 00:01:03]} {[%emt 00:00:54]} 35. Nxf6+ {[%clk
00:16:02]} {[%emt 00:00:17]} Kf8 {[%clk 00:00:50]} {[%emt 00:00:43]} 36. Nc4
{[%clk 00:15:39]} {[%emt 00:00:54]} Bd4 {[%clk 00:00:48]} {[%emt 00:00:33]} 37.
Ng4 {[%clk 00:15:45]} {[%emt 00:00:24]} Kg7 {[%clk 00:00:34]} {[%emt 00:00:44]}
38. Nxa5 {[%clk 00:13:55]} {[%emt 00:02:20]} Rdc8 {[%clk 00:01:00]} {[%emt
00:00:04]} 39. Rf3 {[%clk 00:13:46]} {[%emt 00:00:39]} h5 {[%clk 00:00:40]}
{[%emt 00:00:49]} 40. Ne3 {[%clk 00:13:27]} {[%emt 00:00:48]} Rc1+ {[%clk
00:01:05]} {[%emt 00:00:07]} 41. Kh2 {[%clk 00:13:37]} {[%emt 00:00:19]} Be5+
{[%clk 00:01:12]} {[%emt 00:00:24]} 42. g3 {[%clk 00:13:59]} {[%emt 00:00:07]}
Rc2+ {[%clk 00:01:11]} {[%emt 00:00:32]} 43. Kh1 {[%clk 00:12:55]} {[%emt
00:01:32]} Rxb2 {[%clk 00:01:31]} {[%emt 00:00:11]} 44. Nac4 {[%clk 00:10:52]}
{[%emt 00:02:32]} Rb1+ {[%clk 00:01:50]} {[%emt 00:00:12]} 45. Kg2 {[%clk
00:11:16]} {[%emt 00:00:05]} f6 {[%clk 00:01:13]} {[%emt 00:01:08]} 46. Nd2
{[%clk 00:10:56]} {[%emt 00:00:49]} Rb2 {[%clk 00:01:00]} {[%emt 00:00:44]} 47.
Nec4 {[%clk 00:11:15]} {[%emt 00:00:11]} Rc2 {[%clk 00:00:59]} {[%emt
00:00:31]} 0-1

[Event "The Kvibergspelen 2024"]
[Site "Kviberg Park Hotel & Conference, Krutvagen 2, Gothenburg, Sweden"]
[Date "2024.09.07"]
[Round "6.9"]
[White "Frank, Anton"]
[Black "Kashwan, Hassan"]
[Result "1-0"]
[TimeControl "15 minutes + 5 seconds per move from move one (Round 1 - 4) / 90 minutes + 30 seconds per move from move one (Round 5 - 8)"]
[WhiteFideId "1752383"]
[BlackFideId "137122555"]
[WhiteElo "2142"]
[BlackElo "1936"]

1. e4 {[%clk 01:30:35]} {[%emt 00:00:24]} c5 {[%clk 01:19:16]} {[%emt
00:11:44]} 2. Nf3 {[%clk 01:30:58]} {[%emt 00:00:07]} d6 {[%clk 01:18:32]}
{[%emt 00:01:16]} 3. d4 {[%clk 01:31:20]} {[%emt 00:00:08]} cxd4 {[%clk
01:18:54]} {[%emt 00:00:07]} 4. Nxd4 {[%clk 01:31:42]} {[%emt 00:00:07]} Nf6
{[%clk 01:19:13]} {[%emt 00:00:10]} 5. Nc3 {[%clk 01:32:07]} {[%emt 00:00:06]}
a6 {[%clk 01:19:40]} {[%emt 00:00:04]} 6. Bg5 {[%clk 01:32:27]} {[%emt
00:00:09]} e6 {[%clk 01:19:52]} {[%emt 00:00:19]} 7. f4 {[%clk 01:32:51]}
{[%emt 00:00:06]} Nbd7 {[%clk 01:19:59]} {[%emt 00:00:22]} 8. Qf3 {[%clk
01:32:47]} {[%emt 00:00:34]} Qc7 {[%clk 01:19:39]} {[%emt 00:00:51]} 9. O-O-O
{[%clk 01:32:56]} {[%emt 00:00:20]} Be7 {[%clk 01:16:59]} {[%emt 00:03:11]} 10.
g4 {[%clk 01:33:16]} {[%emt 00:00:09]} Rb8 {[%clk 01:10:35]} {[%emt 00:06:55]}
11. Bxf6 {[%clk 01:26:15]} {[%emt 00:07:30]} gxf6 {[%clk 01:00:13]} {[%emt
00:10:52]} 12. f5 {[%clk 01:17:08]} {[%emt 00:09:37]} Ne5 {[%clk 00:53:49]}
{[%emt 00:06:54]} 13. Qe2 {[%clk 01:12:41]} {[%emt 00:04:58]} b5 {[%clk
00:50:27]} {[%emt 00:03:53]} 14. fxe6 {[%clk 01:11:18]} {[%emt 00:01:51]} fxe6
{[%clk 00:49:34]} {[%emt 00:01:22]} 15. g5 {[%clk 01:10:43]} {[%emt 00:01:06]}
b4 {[%clk 00:46:07]} {[%emt 00:03:58]} 16. Qh5+ {[%clk 01:09:33]} {[%emt
00:01:40]} Ng6 {[%clk 00:40:47]} {[%emt 00:05:50]} 17. Nce2 {[%clk 01:09:14]}
{[%emt 00:00:49]} O-O {[%clk 00:33:14]} {[%emt 00:08:03]} 18. h4 {[%clk
01:00:21]} {[%emt 00:09:23]} Rf7 {[%clk 00:25:05]} {[%emt 00:08:38]} 19. Bh3
{[%clk 00:58:30]} {[%emt 00:02:21]} f5 {[%clk 00:19:23]} {[%emt 00:06:13]} 20.
Rhf1 {[%clk 00:55:20]} {[%emt 00:03:40]} Qc5 {[%clk 00:17:35]} {[%emt
00:02:16]} 21. exf5 {[%clk 00:51:34]} {[%emt 00:04:19]} exf5 {[%emt 00:00:24]}
22. Nf4 {[%clk 00:46:58]} {[%emt 00:05:03]} Nxf4 {[%clk 00:17:49]} {[%emt
00:00:25]} 23. Rxf4 {[%clk 00:47:20]} {[%emt 00:00:09]} Qe5 {[%clk 00:17:43]}
{[%emt 00:00:33]} 24. Qf3 {[%clk 00:44:58]} {[%emt 00:02:53]} Bb7 {[%clk
00:16:32]} {[%emt 00:01:39]} 25. Qf2 {[%clk 00:45:16]} {[%emt 00:00:14]} Be4
{[%clk 00:14:42]} {[%emt 00:02:20]} 26. Re1 {[%clk 00:38:14]} {[%emt 00:07:34]}
Rbf8 {[%clk 00:11:15]} {[%emt 00:03:49]} 27. Nxf5 {[%clk 00:32:11]} {[%emt
00:06:40]} Rxf5 {[%clk 00:08:50]} {[%emt 00:02:54]} 28. Bxf5 {[%clk 00:32:18]}
{[%emt 00:00:23]} d5 {[%clk 00:07:50]} {[%emt 00:01:31]} 29. Bxh7+ {[%clk
00:31:04]} {[%emt 00:01:43]} Kg7 {[%clk 00:04:45]} {[%emt 00:03:36]} 30. Rxf8
{[%clk 00:30:36]} {[%emt 00:00:57]} Bxf8 {[%clk 00:04:27]} {[%emt 00:00:50]} 31.
Bxe4 {[%clk 00:30:45]} {[%emt 00:00:20]} dxe4 {[%clk 00:04:41]} {[%emt
00:00:17]} 32. Qf6+ {[%clk 00:30:42]} {[%emt 00:00:32]} 1-0

[Event "The Kvibergspelen 2024"]
[Site "Kviberg Park Hotel & Conference, Krutvagen 2, Gothenburg, Sweden"]
[Date "2024.09.07"]
[Round "6.10"]
[White "Sjoholm, Emil"]
[Black "Lehtonen, Ture"]
[Result "1-0"]
[TimeControl "15 minutes + 5 seconds per move from move one (Round 1 - 4) / 90 minutes + 30 seconds per move from move one (Round 5 - 8)"]
[WhiteFideId "1720449"]
[BlackFideId "1712446"]
[WhiteElo "2092"]
[BlackElo "2099"]

1. e4 {[%clk 01:30:55]} {[%emt 00:00:05]} d6 {[%clk 01:30:22]} {[%emt
00:00:39]} 2. d4 {[%clk 01:31:07]} {[%emt 00:00:17]} Nf6 {[%clk 01:30:09]}
{[%emt 00:00:43]} 3. f3 {[%clk 01:31:31]} {[%emt 00:00:05]} c5 {[%clk
01:30:29]} {[%emt 00:00:11]} 4. c3 {[%clk 01:31:48]} {[%emt 00:00:12]} d5
{[%clk 01:29:41]} {[%emt 00:01:19]} 5. dxc5 {[%clk 01:29:06]} {[%emt 00:03:12]}
dxe4 {[%clk 01:29:29]} {[%emt 00:00:42]} 6. Qxd8+ {[%clk 01:28:49]} {[%emt
00:00:48]} Kxd8 {[%clk 01:29:52]} {[%emt 00:00:06]} 7. Bg5 {[%clk 01:28:32]}
{[%emt 00:00:47]} Nbd7 {[%clk 01:27:35]} {[%emt 00:02:47]} 8. b4 {[%clk
01:28:13]} {[%emt 00:00:49]} h6 {[%clk 01:27:34]} {[%emt 00:00:31]} 9. Be3
{[%clk 01:27:10]} {[%emt 00:01:33]} a5 {[%clk 01:19:25]} {[%emt 00:08:37]} 10.
fxe4 {[%clk 01:23:27]} {[%emt 00:04:15]} Nxe4 {[%clk 01:14:44]} {[%emt
00:05:11]} 11. Nf3 {[%clk 01:23:07]} {[%emt 00:00:50]} e6 {[%clk 01:06:30]}
{[%emt 00:08:44]} 12. Bd3 {[%clk 01:20:02]} {[%emt 00:03:34]} Nef6 {[%clk
01:06:26]} {[%emt 00:00:35]} 13. Ke2 {[%clk 01:12:36]} {[%emt 00:07:56]} Nd5
{[%clk 01:05:22]} {[%emt 00:01:33]} 14. Bd2 {[%clk 01:12:52]} {[%emt 00:00:15]}
Be7 {[%clk 01:05:20]} {[%emt 00:00:32]} 15. a4 {[%clk 01:10:16]} {[%emt
00:03:06]} Bf6 {[%clk 01:02:44]} {[%emt 00:03:06]} 16. Ra3 {[%clk 01:09:00]}
{[%emt 00:01:45]} Ne5 {[%clk 01:00:53]} {[%emt 00:02:22]} 17. Nxe5 {[%clk
01:08:21]} {[%emt 00:01:09]} Bxe5 {[%clk 01:01:21]} {[%emt 00:00:01]} 18. b5
{[%clk 01:07:26]} {[%emt 00:01:27]} Ke7 {[%clk 00:58:16]} {[%emt 00:03:35]} 19.
Be4 {[%clk 01:02:31]} {[%emt 00:05:25]} Rd8 {[%clk 00:57:46]} {[%emt 00:00:59]}
20. c4 {[%clk 01:00:13]} {[%emt 00:02:49]} Nb4 {[%clk 00:57:30]} {[%emt
00:00:44]} 21. Be3 {[%clk 00:55:17]} {[%emt 00:05:26]} f5 {[%clk 00:55:49]}
{[%emt 00:02:12]} 22. Bf3 {[%clk 00:55:16]} {[%emt 00:00:32]} g5 {[%clk
00:50:46]} {[%emt 00:05:32]} 23. g3 {[%clk 00:54:35]} {[%emt 00:01:11]} Nc2
{[%clk 00:46:44]} {[%emt 00:04:32]} 24. c6 {[%clk 00:50:02]} {[%emt 00:05:03]}
bxc6 {[%clk 00:36:12]} {[%emt 00:11:02]} 25. Bxc6 {[%clk 00:44:02]} {[%emt
00:06:31]} Rb8 {[%clk 00:27:16]} {[%emt 00:09:26]} 26. Rd3 {[%clk 00:41:57]}
{[%emt 00:02:35]} Rxd3 {[%clk 00:27:15]} {[%emt 00:00:30]} 27. Kxd3 {[%clk
00:42:18]} {[%emt 00:00:09]} Nb4+ {[%clk 00:27:38]} {[%emt 00:00:07]} 28. Ke2
{[%clk 00:41:28]} {[%emt 00:01:19]} Nxc6 {[%clk 00:28:02]} {[%emt 00:00:07]} 29.
bxc6 {[%clk 00:41:47]} {[%emt 00:00:11]} Kd6 {[%clk 00:27:32]} {[%emt
00:00:59]} 30. Na3 {[%clk 00:41:05]} {[%emt 00:01:14]} Rb2+ {[%clk 00:26:00]}
{[%emt 00:02:01]} 31. Bd2 {[%clk 00:40:29]} {[%emt 00:01:06]} Bc3 {[%clk
00:22:51]} {[%emt 00:03:40]} 32. Nb5+ {[%clk 00:40:49]} {[%emt 00:00:10]} Kxc6
{[%clk 00:20:20]} {[%emt 00:03:01]} 33. Nxc3 {[%clk 00:41:05]} {[%emt
00:00:13]} Kc5 {[%clk 00:20:11]} {[%emt 00:00:39]} 34. Kd3 {[%clk 00:39:37]}
{[%emt 00:01:57]} e5 {[%clk 00:19:05]} {[%emt 00:01:38]} 35. Nd5 {[%clk
00:35:02]} {[%emt 00:05:04]} Ba6 {[%clk 00:18:15]} {[%emt 00:01:20]} 36. Be3+
{[%clk 00:32:08]} {[%emt 00:03:24]} Kd6 {[%clk 00:17:44]} {[%emt 00:01:01]} 37.
Kc3 {[%clk 00:29:46]} {[%emt 00:02:53]} Ra2 {[%clk 00:09:12]} {[%emt 00:09:01]}
38. Rd1 {[%clk 00:27:05]} {[%emt 00:03:10]} Kc6 {[%clk 00:09:13]} {[%emt
00:00:30]} 39. Ne7+ {[%clk 00:26:57]} {[%emt 00:00:38]} Kc7 {[%clk 00:09:22]}
{[%emt 00:00:22]} 40. Nxf5 {[%clk 00:26:13]} {[%emt 00:01:13]} Ra3+ {[%clk
00:07:25]} {[%emt 00:02:27]} 41. Kb2 {[%clk 00:24:28]} {[%emt 00:02:15]} Rxa4
{[%clk 00:07:41]} {[%emt 00:00:14]} 42. Nxh6 {[%clk 00:22:23]} {[%emt
00:02:34]} Rb4+ {[%clk 00:07:53]} {[%emt 00:00:19]} 43. Kc3 {[%clk 00:21:01]}
{[%emt 00:01:52]} Rxc4+ {[%clk 00:06:00]} {[%emt 00:02:23]} 44. Kd2 {[%clk
00:21:26]} {[%emt 00:00:06]} g4 {[%clk 00:05:51]} {[%emt 00:00:38]} 45. Rc1
{[%clk 00:20:03]} {[%emt 00:01:53]} Rxc1 {[%clk 00:06:02]} {[%emt 00:00:19]} 46.
Kxc1 {[%clk 00:20:27]} {[%emt 00:00:07]} Bc8 {[%clk 00:06:30]} {[%emt
00:00:01]} 47. Nf7 {[%clk 00:20:46]} {[%emt 00:00:10]} e4 {[%clk 00:06:54]}
{[%emt 00:00:06]} 48. Kb2 {[%clk 00:20:27]} {[%emt 00:00:50]} Kc6 {[%clk
00:06:02]} {[%emt 00:01:22]} 49. Kc3 {[%clk 00:20:32]} {[%emt 00:00:25]} Kd5
{[%clk 00:06:29]} {[%emt 00:00:03]} 50. Bf4 {[%clk 00:18:13]} {[%emt 00:02:50]}
Be6 {[%clk 00:04:14]} {[%emt 00:02:44]} 51. Ne5 {[%clk 00:17:32]} {[%emt
00:01:11]} Kc5 {[%clk 00:04:17]} {[%emt 00:00:27]} 52. Be3+ {[%clk 00:17:40]}
{[%emt 00:00:22]} Kd5 {[%clk 00:04:30]} {[%emt 00:00:17]} 53. Ng6 {[%clk
00:17:58]} {[%emt 00:00:11]} Bf7 {[%clk 00:04:40]} {[%emt 00:00:20]} 54. Nf4+
{[%clk 00:18:21]} {[%emt 00:00:08]} Ke5 {[%clk 00:05:01]} {[%emt 00:00:07]} 55.
Ne2 {[%clk 00:18:22]} {[%emt 00:00:30]} Bg8 {[%clk 00:04:49]} {[%emt 00:00:42]}
56. Bb6 {[%clk 00:17:57]} {[%emt 00:00:56]} a4 {[%clk 00:05:05]} {[%emt
00:00:14]} 57. Kb4 {[%clk 00:18:11]} {[%emt 00:00:16]} Bb3 {[%clk 00:05:18]}
{[%emt 00:00:17]} 58. Be3 {[%clk 00:18:36]} {[%emt 00:00:06]} 1-0

[Event "The Kvibergspelen 2024"]
[Site "Kviberg Park Hotel & Conference, Krutvagen 2, Gothenburg, Sweden"]
[Date "2024.09.07"]
[Round "6.11"]
[White "Wahlstrom, Lennart"]
[Black "Andersson, Johan"]
[Result "1/2-1/2"]
[TimeControl "15 minutes + 5 seconds per move from move one (Round 1 - 4) / 90 minutes + 30 seconds per move from move one (Round 5 - 8)"]
[WhiteFideId "1706829"]
[BlackFideId "1703935"]
[WhiteElo "2058"]
[BlackElo "2158"]

1. e4 {[%clk 01:30:29]} {[%emt 00:00:31]} d6 {[%clk 01:30:51]} {[%emt
00:00:09]} 2. d4 {[%clk 01:30:43]} {[%emt 00:00:17]} Nf6 {[%clk 01:31:12]}
{[%emt 00:00:08]} 3. Nc3 {[%clk 01:30:46]} {[%emt 00:00:28]} c6 {[%clk
01:31:28]} {[%emt 00:00:14]} 4. Nf3 {[%clk 01:29:58]} {[%emt 00:01:17]} Bg4
{[%clk 01:31:43]} {[%emt 00:00:14]} 5. h3 {[%clk 01:29:24]} {[%emt 00:01:04]}
Bh5 {[%clk 01:31:58]} {[%emt 00:00:16]} 6. Bd3 {[%clk 01:26:00]} {[%emt
00:03:53]} e6 {[%clk 01:31:56]} {[%emt 00:00:33]} 7. g4 {[%clk 01:24:25]}
{[%emt 00:02:05]} Bg6 {[%clk 01:32:09]} {[%emt 00:00:17]} 8. g5 {[%clk
01:23:37]} {[%emt 00:01:17]} Nfd7 {[%clk 01:30:39]} {[%emt 00:02:00]} 9. h4
{[%clk 01:22:34]} {[%emt 00:01:33]} Bh5 {[%clk 01:23:42]} {[%emt 00:07:28]} 10.
Be2 {[%clk 01:22:42]} {[%emt 00:00:22]} d5 {[%clk 01:22:59]} {[%emt 00:01:14]}
11. a3 {[%clk 01:14:31]} {[%emt 00:08:41]} Be7 {[%clk 01:08:02]} {[%emt
00:15:26]} 12. Be3 {[%clk 01:02:59]} {[%emt 00:12:02]} Nb6 {[%clk 01:01:51]}
{[%emt 00:06:42]} 13. Ne5 {[%clk 00:48:36]} {[%emt 00:14:52]} Bxe2 {[%clk
01:01:51]} {[%emt 00:00:30]} 14. Qxe2 {[%clk 00:48:54]} {[%emt 00:00:11]} N8d7
{[%clk 01:00:26]} {[%emt 00:01:56]} 15. exd5 {[%clk 00:42:29]} {[%emt
00:06:56]} Nxe5 {[%clk 00:53:39]} {[%emt 00:07:16]} 16. dxe5 {[%clk 00:42:38]}
{[%emt 00:00:20]} Nxd5 {[%clk 00:52:17]} {[%emt 00:01:53]} 17. Bd2 {[%clk
00:30:06]} {[%emt 00:13:02]} Qc7 {[%clk 00:47:23]} {[%emt 00:05:23]} 18. Nxd5
{[%clk 00:28:14]} {[%emt 00:02:23]} cxd5 {[%clk 00:45:05]} {[%emt 00:02:48]} 19.
Qb5+ {[%emt 00:03:38]} Qd8 {[%emt 00:00:28]} 1/2-1/2